fUST/lending_fUST_20250301
["ID","MTS","AMOUNT","RATE_DAILY","PERIOD"]
[354924096,1740821439259,-500.0,0.00032876,2]
[354924097,1740821439268,-500.0,0.00032876,2]
[354924098,1740821439278,-500.0,0.00032876,2]
[354924099,1740821439288,-500.0,0.00032876,2]
[354924100,1740821439298,-500.0,0.00032876,2]
[354924101,1740821439308,-500.0,0.00032876,2]
[354924102,1740821439369,-500.0,0.00032876,2]
[354924103,1740821439379,-500.0,0.00032876,2]
[354924104,1740821439390,-500.0,0.00032876,2]
[354924105,1740821439399,-500.0,0.00032876,2]
[354924106,1740821439409,-500.0,0.00032876,2]
[354924107,1740821439418,-508.78,0.00032876,2]
[354924108,1740821439428,-500.0,0.00032876,2]
[354924109,1740821439438,-500.0,0.00032876,2]
[354924110,1740821439448,-500.0,0.00032876,2]
[354924111,1740821439457,-500.0,0.00032876,2]
[354924112,1740821439468,-500.0,0.00032876,2]
[354924113,1740821439477,-1346.81,0.00032876,2]
[354924114,1740821439487,-500.0,0.00032876,2]
[354924115,1740821439496,-500.0,0.00032876,2]
[354924116,1740821439506,-1104.19,0.00032876,2]
[354924117,1740821439516,-505.61208101,0.00032876,2]
[354924118,1740821439526,-527.6,0.00032876,2]
[354924119,1740821439536,-500.0,0.00032876,2]
[354924120,1740821439546,-500.0,0.00032876,2]
[354924121,1740821439555,-299.0,0.00032876,2]
[354924122,1740821439565,-500.0,0.00032876,2]
[354924123,1740821439576,-1188.6,0.00032876,2]
[354924124,1740821439585,-500.0,0.00032876,2]
[354924125,1740821439595,-575.26,0.00032876,2]
[354924126,1740821439605,-500.0,0.00032876,2]
[354924127,1740821439614,-500.0,0.00032876,2]
[354924128,1740821439623,-500.0,0.00032876,2]
[354924129,1740821439633,-500.0,0.00032876,2]
[354924130,1740821439642,-500.0,0.00032876,2]
[354924131,1740821439651,-500.0,0.00032876,2]
[354924132,1740821439661,-500.0,0.00032876,2]
[354924133,1740821439670,-500.0,0.00032876,2]
[354924134,1740821439680,-500.0,0.00032876,2]
[354924135,1740821439690,-500.0,0.00032876,2]
[354924136,1740821439700,-500.0,0.00032876,2]
[354924137,1740821439710,-634.99,0.00032876,2]
[354924138,1740821439720,-500.0,0.00032876,2]
[354924139,1740821439729,-500.0,0.00032876,2]
[354924140,1740821439739,-500.0,0.00032876,2]
[354924141,1740821439748,-500.0,0.00032876,2]
[354924142,1740821439759,-500.0,0.00032876,2]
[354924143,1740821439768,-772.22,0.00032876,2]
[354924144,1740821439779,-524.41823688,0.00032876,2]
[354924145,1740821439789,-506.40713011,0.00032876,2]
[354924146,1740821439799,-500.0,0.00032876,2]
[354924147,1740821439809,-500.0,0.00032876,2]
[354924148,1740821439818,-500.0,0.00032876,2]
[354924149,1740821439828,-500.0,0.00032876,2]
[354924150,1740821439838,-500.0,0.00032876,2]
[354924151,1740821439847,-500.0,0.00032876,2]
[354924152,1740821439857,-500.0,0.00032876,2]
[354924153,1740821439866,-500.0,0.00032876,2]
[354924154,1740821439876,-500.0,0.00032876,2]
[354924155,1740821439886,-500.0,0.00032876,2]
[354924156,1740821439898,-500.0,0.00032876,2]
[354924157,1740821439908,-500.0,0.00032876,2]
[354924158,1740821439918,-500.0,0.00032876,2]
[354924159,1740821439932,-583.78,0.00032876,2]
[354924160,1740821439943,-500.0,0.00032876,2]
[354924161,1740821439952,-500.0,0.00032876,2]
[354924162,1740821439962,-500.0,0.00032876,2]
[354924163,1740821439971,-500.0,0.00032876,2]
[354924164,1740821439981,-500.0,0.00032876,2]
[354924165,1740821439990,-924.65,0.00032876,2]
[354924166,1740821440000,-500.0,0.00032876,2]
[354924167,1740821440010,-500.0,0.00032876,2]
[354924168,1740821440019,-500.0,0.00032876,2]
[354924169,1740821440029,-500.0,0.00032876,2]
[354924170,1740821440038,-500.0,0.00032876,2]
[354924171,1740821440048,-500.0,0.00032876,2]
[354924173,1740821440058,-500.0,0.00032876,2]
[354924174,1740821440067,-500.0,0.00032876,2]
[354924175,1740821440077,-621.9,0.00032876,2]
[354924176,1740821440089,-500.0,0.00032876,2]
[354924177,1740821440099,-500.0,0.00032876,2]
[354924178,1740821440109,-500.0,0.00032876,2]
[354924179,1740821440118,-500.0,0.00032876,2]
[354924180,1740821440128,-500.0,0.00032876,2]
[354924181,1740821440138,-200.0,0.00032876,2]
[354924182,1740821440148,-501.33529888,0.00032876,2]
[354924183,1740821440157,-500.0,0.00032876,2]
[354924184,1740821440168,-500.0,0.00032876,2]
[354924185,1740821440177,-500.0,0.00032876,2]
[354924186,1740821440187,-500.0,0.00032876,2]
[354924187,1740821440196,-500.0,0.00032876,2]
[354924188,1740821440205,-500.0,0.00032876,2]
[354924189,1740821440214,-500.0,0.00032876,2]
[354924190,1740821440224,-500.0,0.00032876,2]
[354924191,1740821440235,-596.3,0.00032876,2]
[354924192,1740821440245,-500.0,0.00032876,2]
[354924193,1740821440254,-500.0,0.00032876,2]
[354924194,1740821440264,-500.0,0.00032876,2]
[354924195,1740821440274,-750.25,0.00032876,2]
[354924196,1740821440283,-730.26,0.00032876,2]
[354924197,1740821440292,-500.0,0.00032876,2]
[354924198,1740821440301,-500.0,0.00032876,2]
[354924199,1740821440311,-500.0,0.00032876,2]
[354924200,1740821440320,-500.0,0.00032876,2]
[354924201,1740821440329,-500.0,0.00032876,2]
[354924202,1740821440339,-500.0,0.00032876,2]
[354924203,1740821440348,-500.0,0.00032876,2]
[354924204,1740821440358,-500.0,0.00032876,2]
[354924205,1740821440367,-500.0,0.00032876,2]
[354924206,1740821440376,-500.0,0.00032876,2]
[354924207,1740821440386,-584.86,0.00032876,2]
[354924208,1740821440395,-500.0,0.00032876,2]
[354924209,1740821440406,-500.0,0.00032876,2]
[354924210,1740821440416,-1078.77,0.00032876,2]
[354924211,1740821440425,-982.28,0.00032876,2]
[354924212,1740821440435,-500.0,0.00032876,2]
[354924213,1740821440444,-500.0,0.00032876,2]
[354924214,1740821440453,-501.23653082,0.00032876,2]
[354924215,1740821440463,-500.0,0.00032876,2]
[354924216,1740821440472,-686.67,0.00032876,2]
[354924217,1740821440482,-500.0,0.00032876,2]
[354924218,1740821440491,-500.0,0.00032876,2]
[354924219,1740821440501,-500.0,0.00032876,2]
[354924220,1740821440511,-505.98346316,0.00032876,2]
[354924221,1740821440520,-500.0,0.00032876,2]
[354924222,1740821440529,-500.0,0.00032876,2]
[354924223,1740821440538,-500.0,0.00032876,2]
[354924225,1740821440548,-988.91,0.00032876,2]
[354924227,1740821440557,-500.0,0.00032876,2]
[354924228,1740821440566,-500.0,0.00032876,2]
[354924229,1740821440575,-500.0,0.00032876,2]
[354924230,1740821440585,-500.0,0.00032876,2]
[354924231,1740821440594,-500.0,0.00032876,2]
[354924232,1740821440603,-500.0,0.00032876,2]
[354924233,1740821440613,-500.0,0.00032876,2]
[354924234,1740821440622,-500.0,0.00032876,2]
[354924235,1740821440631,-500.0,0.00032876,2]
[354924236,1740821440640,-539.04,0.00032876,2]
[354924237,1740821440650,-500.0,0.00032876,2]
[354924238,1740821440659,-500.0,0.00032876,2]
[354924239,1740821440668,-500.0,0.00032876,2]
[354924240,1740821440677,-500.0,0.00032876,2]
[354924241,1740821440687,-663.33,0.00032876,2]
[354924242,1740821440697,-511.2,0.00032876,2]
[354924243,1740821440706,-500.0,0.00032876,2]
[354924244,1740821440715,-500.0,0.00032876,2]
[354924245,1740821440725,-191.93832139,0.00032876,2]
[354924246,1740821440734,-500.0,0.00032876,2]
[354924247,1740821440743,-736.82,0.00032876,2]
[354924248,1740821440753,-500.0,0.00032876,2]
[354924249,1740821440763,-500.0,0.00032876,2]
[354924250,1740821440773,-500.0,0.00032876,2]
[354924251,1740821440783,-500.0,0.00032876,2]
[354924252,1740821440792,-500.0,0.00032876,2]
[354924253,1740821440801,-500.0,0.00032876,2]
[354924254,1740821440811,-744.91,0.00032876,2]
[354924255,1740821440820,-500.0,0.00032876,2]
[354924256,1740821440829,-500.0,0.00032876,2]
[354924257,1740821440838,-509.76,0.00032876,2]
[354924258,1740821440847,-1550.66,0.00032876,2]
[354924259,1740821440857,-500.0,0.00032876,2]
[354924260,1740821440866,-965.03,0.00032876,2]
[354924261,1740821440875,-1033.15,0.00032876,2]
[354924262,1740821440884,-4621.42,0.00032876,2]
[354924263,1740821440894,-1088.15,0.00032876,2]
[354924264,1740821440903,-500.0,0.00032876,2]
[354924265,1740821440912,-500.0,0.00032876,2]
[354924266,1740821440921,-882.73,0.00032876,2]
[354924267,1740821440931,-522.04425996,0.00032876,2]
[354924268,1740821440939,-500.0,0.00032876,2]
[354924269,1740821440948,-718.71,0.00032876,2]
[354924270,1740821440957,-500.0,0.00032876,2]
[354924271,1740821440967,-500.0,0.00032876,2]
[354924272,1740821440976,-500.0,0.00032876,2]
[354924273,1740821440985,-885.52,0.00032876,2]
[354924274,1740821440995,-500.0,0.00032876,2]
[354924275,1740821441004,-500.0,0.00032876,2]
[354924276,1740821441014,-500.0,0.00032876,2]
[354924277,1740821441023,-1653.22,0.00032876,2]
[354924278,1740821441033,-500.0,0.00032876,2]
[354924279,1740821441043,-500.0,0.00032876,2]
[354924280,1740821441052,-500.0,0.00032876,2]
[354924281,1740821441062,-500.0,0.00032876,2]
[354924282,1740821441071,-500.0,0.00032876,2]
[354924283,1740821441080,-500.0,0.00032876,2]
[354924284,1740821441093,-500.0,0.00032876,2]
[354924285,1740821441102,-500.0,0.00032876,2]
[354924286,1740821441112,-500.0,0.00032876,2]
[354924287,1740821441122,-1550.7,0.00032876,2]
[354924288,1740821441131,-1101.82,0.00032876,2]
[354924289,1740821441142,-500.0,0.00032876,2]
[354924290,1740821441151,-1504.83,0.00032876,2]
[354924291,1740821441160,-500.0,0.00032876,2]
[354924292,1740821441170,-519.38,0.00032876,2]
[354924293,1740821441179,-500.0,0.00032876,2]
[354924294,1740821441189,-500.0,0.00032876,2]
[354924295,1740821441198,-842.58,0.00032876,2]
[354924296,1740821441208,-500.0,0.00032876,2]
[354924297,1740821441217,-500.0,0.00032876,2]
[354924298,1740821441227,-500.0,0.00032876,2]
[354924299,1740821441236,-500.0,0.00032876,2]
[354924300,1740821441246,-500.0,0.00032876,2]
[354924301,1740821441255,-1030.16,0.00032876,2]
[354924302,1740821441265,-500.0,0.00032876,2]
[354924303,1740821441274,-500.0,0.00032876,2]
[354924304,1740821441284,-500.0,0.00032876,2]
[354924305,1740821441293,-500.0,0.00032876,2]
[354924306,1740821441302,-500.0,0.00032876,2]
[354924307,1740821441311,-500.0,0.00032876,2]
[354924308,1740821441320,-500.0,0.00032876,2]
[354924309,1740821441329,-500.0,0.00032876,2]
[354924310,1740821441339,-500.0,0.00032876,2]
[354924311,1740821441348,-500.0,0.00032876,2]
[354924312,1740821441357,-500.0,0.00032876,2]
[354924313,1740821441367,-500.0,0.00032876,2]
[354924314,1740821441376,-500.0,0.00032876,2]
[354924315,1740821441385,-500.0,0.00032876,2]
[354924316,1740821441395,-517.81555958,0.00032876,2]
[354924317,1740821441404,-500.0,0.00032876,2]
[354924318,1740821441414,-500.0,0.00032876,2]
[354924319,1740821441423,-500.0,0.00032876,2]
[354924320,1740821441432,-500.0,0.00032876,2]
[354924321,1740821441442,-500.0,0.00032876,2]
[354924322,1740821441451,-1461.12,0.00032876,2]
[354924323,1740821441460,-500.0,0.00032876,2]
[354924324,1740821441470,-571.6,0.00032876,2]
[354924325,1740821441479,-604.96,0.00032876,2]
[354924326,1740821441489,-500.0,0.00032876,2]
[354924327,1740821441498,-500.0,0.00032876,2]
[354924328,1740821441508,-500.0,0.00032876,2]
[354924329,1740821441517,-318.20195733,0.00032876,2]
[354924330,1740821441526,-500.0,0.00032876,2]
[354924331,1740821441535,-500.0,0.00032876,2]
[354924332,1740821441545,-500.0,0.00032876,2]
[354924333,1740821441555,-1150.8,0.00032876,2]
[354924334,1740821441564,-637.99,0.00032876,2]
[354924335,1740821441574,-500.0,0.00032876,2]
[354924336,1740821441583,-658.89,0.00032876,2]
[354924337,1740821441593,-500.0,0.00032876,2]
[354924338,1740821441602,-500.0,0.00032876,2]
[354924339,1740821441611,-1105.2,0.00032876,2]
[354924340,1740821441621,-500.0,0.00032876,2]
[354924341,1740821441630,-961.38,0.00032876,2]
[354924342,1740821441640,-500.0,0.00032876,2]
[354924343,1740821441649,-500.0,0.00032876,2]
[354924344,1740821441659,-604.03,0.00032876,2]
[354924345,1740821441670,-500.0,0.00032876,2]
[354924346,1740821441679,-833.69,0.00032876,2]
[354924347,1740821441688,-500.0,0.00032876,2]
[354924348,1740821441697,-500.0,0.00032876,2]
[354924349,1740821441707,-500.0,0.00032876,2]
[354924350,1740821441715,-500.0,0.00032876,2]
[354924351,1740821441725,-785.7,0.00032876,2]
[354924352,1740821441734,-500.0,0.00032876,2]
[354924353,1740821441743,-500.0,0.00032876,2]
[354924354,1740821441752,-500.0,0.00032876,2]
[354924355,1740821441761,-1420.95,0.00032876,2]
[354924356,1740821441771,-500.0,0.00032876,2]
[354924357,1740821441780,-500.0,0.00032876,2]
[354924358,1740821441789,-500.0,0.00032876,2]
[354924359,1740821441798,-500.0,0.00032876,2]
[354924360,1740821441807,-1221.2,0.00032876,2]
[354924361,1740821441817,-500.0,0.00032876,2]
[354924362,1740821441826,-500.0,0.00032876,2]
[354924363,1740821441835,-500.0,0.00032876,2]
[354924364,1740821441844,-434.92618331,0.00032876,2]
[354924365,1740821441854,-500.0,0.00032876,2]
[354924366,1740821441863,-500.0,0.00032876,2]
[354924367,1740821441873,-500.0,0.00032876,2]
[354924368,1740821441882,-769.09,0.00032876,2]
[354924369,1740821441892,-500.0,0.00032876,2]
[354924370,1740821441901,-500.0,0.00032876,2]
[354924371,1740821441911,-1276.6,0.00032876,2]
[354924372,1740821441920,-500.0,0.00032876,120]
[354924373,1740821441929,-500.0,0.00032876,2]
[354924374,1740821441938,-500.0,0.00032876,2]
[354924375,1740821441947,-500.0,0.00032876,2]
[354924376,1740821441957,-500.0,0.00032876,2]
[354924377,1740821441966,-500.0,0.00032876,2]
[354924378,1740821441975,-620.62,0.00032876,2]
[354924379,1740821441985,-500.0,0.00032876,2]
[354924380,1740821441994,-1363.61,0.00032876,2]
[354924381,1740821442003,-500.0,0.00032876,2]
[354924382,1740821442012,-595.59,0.00032876,2]
[354924383,1740821442022,-500.0,0.00032876,2]
[354924384,1740821442031,-500.0,0.00032876,2]
[354924385,1740821442040,-500.0,0.00032876,2]
[354924386,1740821442049,-500.0,0.00032876,2]
[354924387,1740821442058,-500.0,0.00032876,2]
[354924388,1740821442067,-500.0,0.00032876,2]
[354924389,1740821442076,-1206.04,0.00032876,2]
[354924390,1740821442088,-500.0,0.00032876,2]
[354924391,1740821442099,-500.0,0.00032876,2]
[354924392,1740821442108,-530.49,0.00032876,2]
[354924393,1740821442117,-500.0,0.00032876,2]
[354924394,1740821442126,-500.0,0.00032876,2]
[354924395,1740821442136,-500.0,0.00032876,2]
[354924396,1740821442145,-500.0,0.00032876,2]
[354924397,1740821442155,-2493.75,0.00032876,2]
[354924398,1740821442164,-2067.83,0.00032876,2]
[354924399,1740821442173,-500.0,0.00032876,2]
[354924400,1740821442183,-500.0,0.00032876,2]
[354924401,1740821442192,-500.0,0.00032876,2]
[354924402,1740821442203,-525.0,0.00032876,2]
[354924403,1740821442212,-516.57229199,0.00032876,2]
[354924404,1740821442221,-532.98720396,0.00032876,2]
[354924405,1740821442230,-500.0,0.00032876,2]
[354924406,1740821442239,-1557.63,0.00032876,2]
[354924407,1740821442248,-500.0,0.00032876,2]
[354924408,1740821442257,-1816.62,0.00032876,2]
[354924409,1740821442266,-725.99,0.00032876,2]
[354924410,1740821442275,-500.0,0.00032876,2]
[354924411,1740821442284,-859.97,0.00032876,2]
[354924412,1740821442293,-500.0,0.00032876,2]
[354924413,1740821442303,-1151.55,0.00032876,2]
[354924414,1740821442312,-500.0,0.00032876,2]
[354924415,1740821442321,-500.0,0.00032876,2]
[354924416,1740821442330,-500.0,0.00032876,2]
[354924417,1740821442339,-500.0,0.00032876,2]
[354924418,1740821442348,-7160.36,0.00032876,2]
[354924419,1740821442357,-13002.41,0.00032876,2]
[354924420,1740821442367,-500.0,0.00032876,2]
[354924421,1740821442376,-500.0,0.00032876,2]
[354924422,1740821442388,-1528.96,0.00032876,2]
[354924423,1740821442397,-1838.38,0.00032876,2]
[354924424,1740821442406,-668.61,0.00032876,2]
[354924425,1740821442415,-12081.99,0.00032876,2]
[354924426,1740821442425,-649.18,0.00032876,2]
[354924427,1740821442434,-2053.48,0.00032876,2]
[354924428,1740821442443,-1419.59,0.00032876,2]
[354924429,1740821442452,-500.0,0.00032876,2]
[354924430,1740821442462,-500.0,0.00032876,2]
[354924431,1740821442471,-3333.31,0.00032876,2]
[354924432,1740821442480,-1332.15,0.00032876,2]
[354924433,1740821442489,-500.0,0.00032876,2]
[354924434,1740821442499,-500.0,0.00032876,2]
[354924435,1740821442508,-500.0,0.00032876,2]
[354924436,1740821442517,-763.78,0.00032876,2]
[354924437,1740821442527,-550.09,0.00032876,2]
[354924438,1740821442535,-1217.96,0.00032876,2]
[354924439,1740821442544,-500.0,0.00032876,2]
[354924440,1740821442553,-714.28,0.00032876,2]
[354924441,1740821442563,-500.0,0.00032876,2]
[354924442,1740821442571,-500.0,0.00032876,2]
[354924443,1740821442581,-800.25,0.00032876,2]
[354924444,1740821442590,-500.0,0.00032876,2]
[354924445,1740821442599,-3473.39,0.00032876,2]
[354924446,1740821442608,-494.21933341,0.00032876,2]
[354924447,1740821442617,-500.0,0.00032876,2]
[354924448,1740821442626,-1279.71,0.00032876,2]
[354924449,1740821442635,-1811.08,0.00032876,2]
[354924450,1740821442645,-560.43,0.00032876,2]
[354924451,1740821442654,-595.84,0.00032876,2]
[354924452,1740821442663,-990.78,0.00032876,2]
[354924453,1740821442673,-2823.96,0.00032876,2]
[354924454,1740821442681,-500.0,0.00032876,2]
[354924455,1740821442691,-1118.83,0.00032876,2]
[354924456,1740821442700,-500.0,0.00032876,2]
[354924457,1740821442709,-2038.12,0.00032876,2]
[354924458,1740821442719,-500.0,0.00032876,2]
[354924459,1740821442728,-1281.64,0.00032876,2]
[354924460,1740821442737,-1112.75,0.00032876,2]
[354924461,1740821442746,-500.0,0.00032876,2]
[354924462,1740821442755,-649.43,0.00032876,2]
[354924463,1740821442764,-45545.1448124,0.00032876,2]
[354924465,1740821443159,-12809.85,0.00032876,2]
[354924491,1740821503437,150.0,0.00030776,2]
[354924492,1740821508792,1627.42367943,0.0002875,2]
[354924493,1740821508813,2372.57632057,0.0002875,2]
[354924494,1740821680689,4423.3126,0.0003,14]
[354924495,1740821712087,192.43184603,0.0003,7]
[354924501,1740822015960,183.1074528,0.00029402,120]
[354924504,1740822396139,-323.46396587,0.00028885,2]
[354924505,1740822427079,-150.0,0.000279,2]
[354924506,1740822427101,-72.73039313,0.00028885,2]
[354924507,1740822427121,-1438.3787285,0.00029637,2]
[354924508,1740822427142,-2897.95049054,0.000299,2]
[354924509,1740822431488,-7606.4185166,0.000299,2]
[354924510,1740822431512,-384.26952903,0.000299,5]
[354924511,1740822431533,-232.3792632,0.00029999,2]
[354924512,1740822431555,-208.0,0.0003,2]
[354924513,1740822431575,-500.0,0.0003,5]
[354924514,1740822431595,-500.0,0.0003,5]
[354924515,1740822431616,-500.0,0.0003,5]
[354924516,1740822431636,-500.0,0.0003,5]
[354924517,1740822431656,-595.9316862,0.0003,5]
[354924518,1740822431677,-500.0,0.0003,5]
[354924519,1740822431696,-500.0,0.0003,5]
[354924520,1740822431716,-500.0,0.0003,5]
[354924521,1740822431736,-500.0,0.0003,5]
[354924522,1740822431758,-384.2695289,0.00030521,5]
[354924523,1740822431779,-580.31,0.00030926,3]
[354924524,1740822431801,-7440.48700207,0.00030936,2]
[354924525,1740822432099,-17459.51299793,0.00030936,2]
[354924526,1740822432123,-384.2695289,0.00031141,5]
[354924527,1740822432144,-209.0,0.00031644,2]
[354924528,1740822432165,-1000.0,0.0003168,2]
[354924529,1740822432188,-384.2695289,0.00031762,6]
[354924530,1740822432209,-500.0,0.000321,2]
[354924531,1740822432231,-500.0,0.000321,2]
[354924532,1740822432251,-500.0,0.000321,2]
[354924533,1740822432272,-500.0,0.000321,2]
[354924534,1740822432293,-500.0,0.000321,2]
[354924535,1740822432316,-500.0,0.000321,2]
[354924536,1740822432337,-500.0,0.000321,2]
[354924537,1740822432358,-500.0,0.000321,2]
[354924538,1740822432382,-500.0,0.000321,2]
[354924539,1740822432403,-500.0,0.000321,2]
[354924540,1740822432425,-500.0,0.000321,2]
[354924541,1740822432450,-514.41,0.000321,2]
[354924542,1740822432473,-1144.5561706,0.00032219,4]
[354924543,1740822432494,-1000.0,0.00032273,2]
[354924544,1740822432518,-384.2695289,0.00032383,6]
[354924545,1740822432540,-163.13438124,0.000324,2]
[354924546,1740822432564,-302.33409828,0.00032475,2]
[354924547,1740822432586,-362.55186408,0.00032475,2]
[354924548,1740822432609,-222000.0,0.00032476,2]
[354924549,1740822432630,-163.13438123,0.00032494,2]
[354924550,1740822432652,-405.66,0.000325,7]
[354924551,1740822432674,-163.13438123,0.00032588,2]
[354924552,1740822432695,-902.1901073,0.00032678,2]
[354924553,1740822432715,-163.13438123,0.00032682,2]
[354924554,1740822432736,-484.916,0.000327,33]
[354924555,1740822432758,-3000.0,0.00032776,2]
[354924556,1740822432780,-163.13438123,0.00032776,2]
[354924557,1740822432802,-398.36370522,0.0003278,2]
[354924558,1740822432824,-1000.0,0.000328,2]
[354924559,1740822432849,-151.0,0.000328,20]
[354924560,1740822432872,-151.0,0.000328,11]
[354924561,1740822432896,-1260.43321,0.00032816,30]
[354924562,1740822432920,-500.0,0.00032873,5]
[354924563,1740822432941,-500.0,0.00032873,5]
[354924564,1740822432963,-500.0,0.00032873,5]
[354924565,1740822432986,-500.0,0.00032873,5]
[354924566,1740822433009,-500.0,0.00032873,5]
[354924567,1740822433035,-303.8027514,0.00032873,5]
[354924568,1740822433058,-512.68758567,0.00032873,5]
[354924569,1740822433082,-500.0,0.00032873,5]
[354924570,1740822433104,-500.0,0.00032873,5]
[354924571,1740822433128,-500.0,0.00032873,5]
[354924572,1740822433152,-500.0,0.00032873,5]
[354924573,1740822433175,-500.0,0.00032873,5]
[354924574,1740822433202,-471.34739911,0.00032873,2]
[354924575,1740822433225,-500.0,0.00032873,5]
[354924576,1740822433246,-503.05824527,0.00032873,5]
[354924577,1740822433267,-325.12137843,0.00032873,5]
[354924578,1740822433289,-4000.0,0.00032875,2]
[354924579,1740822433311,-4000.0,0.00032875,3]
[354924580,1740822433333,-4000.0,0.00032875,4]
[354924581,1740822433355,-4000.0,0.00032875,6]
[354924582,1740822433377,-1165.09,0.00032875,2]
[354924583,1740822433400,-37721.86721484,0.00032876,15]
[354924584,1740822433423,-7766.66443276,0.00032876,15]
[354924585,1740822443117,-435.70951069,0.0003,5]
[354924586,1740822546103,-320.22460761,0.000299,5]
[354924587,1740822546127,-300.0,0.00029999,2]
[354924588,1740822546149,-64.29048931,0.0003,5]
[354924589,1740822546174,-500.0,0.0003,3]
[354924590,1740822546195,-500.0,0.0003,5]
[354924591,1740822546218,-500.0,0.0003,5]
[354924592,1740822546241,-501.16940073,0.0003,5]
[354924593,1740822546262,-8245.41846293,0.0003,2]
[354924594,1740822551111,-108826.15993128,0.0003,2]
[354924595,1740822558157,-240782.00369508,0.0003,2]
[354924615,1740822635342,-300.0,0.00029999,2]
[354924616,1740822635352,-500.0,0.00029999,2]
[354924617,1740822635362,-500.0,0.00029999,2]
[354924618,1740822635372,-500.0,0.00029999,2]
[354924619,1740822635382,-500.0,0.00029999,2]
[354924620,1740822635391,-500.0,0.00029999,2]
[354924621,1740822635401,-500.0,0.00029999,2]
[354924622,1740822635411,-500.0,0.00029999,2]
[354924623,1740822635421,-500.0,0.00029999,2]
[354924624,1740822635433,-500.0,0.00029999,2]
[354924625,1740822635443,-500.0,0.00029999,2]
[354924626,1740822635453,-500.0,0.00029999,2]
[354924627,1740822635462,-250.0,0.00029999,2]
[354924628,1740822635474,-500.0,0.00029999,2]
[354924629,1740822635484,-500.0,0.00029999,2]
[354924630,1740822635493,-500.0,0.00029999,2]
[354924631,1740822635579,-500.0,0.00029999,2]
[354924632,1740822635589,-500.0,0.00029999,2]
[354924633,1740822635599,-500.0,0.00029999,2]
[354924634,1740822635608,-500.0,0.00029999,2]
[354924635,1740822635617,-500.0,0.00029999,2]
[354924636,1740822635627,-500.0,0.00029999,2]
[354924637,1740822635636,-500.0,0.00029999,2]
[354924638,1740822635646,-500.0,0.00029999,2]
[354924639,1740822635655,-500.0,0.00029999,2]
[354924640,1740822635664,-500.0,0.00029999,2]
[354924641,1740822635673,-500.0,0.00029999,2]
[354924642,1740822635683,-500.0,0.00029999,2]
[354924643,1740822635692,-500.0,0.00029999,2]
[354924644,1740822635702,-500.0,0.00029999,2]
[354924645,1740822635711,-500.0,0.00029999,2]
[354924646,1740822635720,-500.0,0.00029999,2]
[354924647,1740822635730,-500.0,0.00029999,2]
[354924648,1740822635739,-500.0,0.00029999,2]
[354924649,1740822635750,-500.0,0.00029999,2]
[354924650,1740822635759,-500.0,0.00029999,2]